bitfinex/quotes_SOLUSD_20220211
["timestamp","ask_amount","ask_price","bid_price","bid_amount"]
[1644592004976,66.0476,107.47,107.38,7.03766791]
[1644592005176,61.3926,107.47,107.38,7.28766791]
[1644592005378,61.3926,107.47,107.38,4.654]
[1644592005779,35.97420852,107.46,107.39,43.36706601]
[1644592006079,54.59940852,107.46,107.39,43.36706601]
[1644592006577,54.59940852,107.46,107.36,0.024]
[1644592006778,2.38366791,107.45,107.36,0.024]
[1644592006978,4.655,107.44,107.36,0.024]
[1644592007196,4.655,107.44,107.34,16.088]
[1644592007384,4.655,107.44,107.34,11.434]
[1644592007583,34.71935102,107.43,107.35,38.19937843]
[1644592007783,34.71935102,107.43,107.36,4.655]
[1644592007984,34.71935102,107.43,107.37,42.98007963]
[1644592008186,34.71935102,107.43,107.36,4.655]
[1644592008587,6.0,107.45,107.36,7.03866791]
[1644592008990,6.0,107.45,107.36,15.839]
[1644592009193,4.655,107.46,107.36,15.839]
[1644592009391,10.655,107.46,107.36,4.679]
[1644592009590,34.48247021,107.45,107.36,4.679]
[1644592009789,48.45477021,107.45,107.36,4.679]
[1644592009992,48.45477021,107.45,107.37,39.42265328]
[1644592010190,95.17477021,107.45,107.37,39.42265328]
[1644592010389,48.45477021,107.45,107.37,39.42265328]
[1644592010588,39.31110071,107.43,107.37,39.42265328]
[1644592011593,39.31110071,107.43,107.37,39.67265328]
[1644592012299,39.31110071,107.43,107.37,42.05632119]
[1644592012491,39.31110071,107.43,107.38,4.655]
[1644592012691,61.3927,107.47,107.39,38.40622468]
[1644592013094,61.3927,107.47,107.39,38.65622468]
[1644592013293,4.655,107.48,107.39,41.03989259]
[1644592013518,4.655,107.48,107.4,11.16]
[1644592013715,37.43752935,107.48,107.41,47.00015056]
[1644592014119,37.43752935,107.48,107.41,47.25015056]
[1644592014316,37.43752935,107.48,107.42,11.16]
[1644592014718,6.0,107.47,107.41,47.00015056]
[1644592014919,35.29997028,107.46,107.41,47.00015056]
[1644592015421,35.29997028,107.46,107.4,15.812]
[1644592015618,4.654,107.45,107.37,11.16]
[1644592015817,10.654,107.45,107.36,0.024]
[1644592016418,48.51908269,107.44,107.36,0.024]
[1644592016622,36.20504714,107.42,107.36,0.024]
[1644592016821,36.20504714,107.42,107.35,39.81196049]
[1644592017019,40.86104714,107.42,107.35,39.81196049]
[1644592017520,36.20504714,107.42,107.35,44.46796049]
[1644592017923,19.9724,107.45,107.35,46.8516284]
[1644592018119,13.9724,107.45,107.35,46.8516284]
[1644592018319,13.9724,107.45,107.35,46.8756284]
[1644592018519,10.655,107.44,107.35,42.2196284]
[1644592018720,6.0,107.44,107.36,0.024]
[1644592019021,35.05723414,107.42,107.36,0.024]
[1644592019322,35.05723414,107.42,107.35,42.4456284]
[1644592020120,35.05723414,107.42,107.35,2.38366791]
[1644592020320,6.0,107.41,107.34,15.815]
[1644592020520,10.656,107.41,107.33,47.2476]
[1644592020721,35.05723414,107.42,107.33,47.2476]
[1644592020927,35.05723414,107.42,107.33,49.63126791]
[1644592021120,35.05723414,107.42,107.34,46.24146484]
[1644592021321,23.5355,107.47,107.34,67.24503056]
[1644592021522,4.655,107.46,107.35,12.53728535]
[1644592021720,23.5355,107.47,107.36,22.58195779]
[1644592021923,4.655,107.48,107.37,6.74295779]
[1644592022120,23.7796,107.49,107.38,15.814]
[1644592022321,46.27556564,107.48,107.39,44.40480773]
[1644592022521,4.652,107.47,107.4,4.652]
[1644592022822,18.6211,107.47,107.37,2.61334035]
[1644592023028,18.6211,107.47,107.36,11.4232502]
[1644592023237,18.6211,107.47,107.36,0.274]
[1644592023623,37.49366057,107.46,107.38,44.97575207]
[1644592023825,45.94106439,107.44,107.38,44.97575207]
[1644592024724,50.59606439,107.44,107.38,44.97575207]
[1644592025622,45.94106439,107.44,107.38,44.97575207]
[1644592026326,45.94106439,107.44,107.37,2.61334035]
[1644592026524,64.56856439,107.44,107.37,2.61334035]
[1644592026824,59.91356439,107.44,107.37,2.61334035]
[1644592027224,24.829,107.47,107.38,4.99700826]
[1644592027428,153.0628,107.5,107.39,6.76527437]
[1644592027733,75.6878,107.5,107.39,20.55894228]
[1644592027927,22.7953,107.52,107.4,6.53560193]
[1644592028126,4.652,107.54,107.41,17.92527437]
[1644592028325,47.33984546,107.54,107.44,2.61334035]
[1644592028527,47.33984546,107.54,107.45,65.59492264]
[1644592028724,47.33984546,107.54,107.46,4.15193402]
[1644592028926,13.9573,107.56,107.47,44.73260008]
[1644592029125,469.42782587,107.57,107.47,55.89260008]
[1644592029325,469.42782587,107.57,107.48,2.38366791]
[1644592029529,4.65,107.56,107.48,2.38366791]
[1644592029727,13.957,107.56,107.47,55.89260008]
[1644592029927,48.96434038,107.55,107.47,56.14260008]
[1644592030326,48.96434038,107.55,107.47,58.52626799]
[1644592030928,44.31434038,107.55,107.47,72.48166799]
[1644592031129,44.31434038,107.55,107.47,58.27626799]
[1644592031430,44.31434038,107.55,107.44,13.77334035]
[1644592031643,13.03466791,107.54,107.41,13.77334035]
[1644592031828,13.03466791,107.54,107.41,11.16]
[1644592032028,10.651,107.54,107.41,11.16]
[1644592032232,42.59579565,107.53,107.42,51.91180388]
[1644592032528,42.59579565,107.53,107.42,63.07180388]
[1644592032728,42.59579565,107.53,107.43,4.2720914]
[1644592032929,41.67749059,107.51,107.44,40.26692496]
[1644592033330,41.67749059,107.51,107.44,40.51692496]
[1644592033731,4.651,107.53,107.44,40.51692496]
[1644592033932,28.8049,107.57,107.45,4.652]
[1644592034131,4.65,107.56,107.46,11.16]
[1644592034329,4.65,107.56,107.46,13.79366791]
[1644592034530,23.4648,107.58,107.47,2.38366791]
[1644592034740,43.08837318,107.55,107.47,56.98230603]
[1644592035131,4.65,107.56,107.47,56.98230603]
[1644592035331,4.65,107.59,107.48,7.03366791]
[1644592035532,4.65,107.59,107.48,18.19366791]
[1644592035732,0.03618659,107.61,107.49,2.38366791]
[1644592035935,13.9527,107.59,107.5,4.648]
[1644592036131,40.35804499,107.58,107.51,42.0803316]
[1644592036332,13.9527,107.59,107.52,4.649]
[1644592036532,6.03618659,107.61,107.52,7.03266791]
[1644592036733,0.03618659,107.62,107.52,18.44266791]
[1644592036935,0.03618659,107.62,107.53,22.32996791]
[1644592037134,0.03618659,107.64,107.54,16.277]
[1644592037337,46.11599558,107.64,107.55,46.48319946]
[1644592037535,4.647,107.63,107.56,11.16]
[1644592037736,4.68218659,107.68,107.57,38.21348589]
[1644592037934,0.03618659,107.66,107.58,4.644]
[1644592038134,8.13302,107.66,107.57,43.10748589]
[1644592038334,6.0,107.65,107.57,38.21348589]
[1644592038536,4.646,107.64,107.53,4.646]
[1644592038740,3.48902,107.63,107.53,15.806]
[1644592038937,4.647,107.62,107.53,11.16]
[1644592039137,8.13602,107.62,107.53,11.16]
[1644592039540,45.08850348,107.61,107.54,48.68967058]
[1644592039738,46.94792962,107.59,107.51,11.16]
[1644592039942,4.649,107.58,107.51,11.16]
[1644592040839,4.649,107.58,107.52,41.18023823]
[1644592041041,46.94792962,107.59,107.52,41.18023823]
[1644592041238,4.649,107.58,107.52,41.43023823]
[1644592041439,46.94792962,107.59,107.52,41.43023823]
[1644592041640,4.648,107.6,107.52,41.43023823]
[1644592041838,8.13702,107.6,107.52,54.97390614]
[1644592042038,3.48902,107.6,107.53,10.648]
[1644592042238,3.48902,107.6,107.54,11.16]
[1644592042438,3.48902,107.6,107.55,4.648]
[1644592042640,3.48902,107.6,107.56,43.4082821]
[1644592043040,3.48902,107.6,107.56,43.6582821]
[1644592043238,34.27971798,107.62,107.56,43.4082821]
[1644592043438,34.24353139,107.62,107.56,43.4082821]
[1644592043739,4.647,107.63,107.56,43.4082821]
[1644592043938,8.13602,107.63,107.56,43.4082821]
[1644592044138,3.48902,107.63,107.56,43.4082821]
[1644592044438,6.0,107.62,107.52,39.956]
[1644592044640,3.48902,107.61,107.52,15.806]
[1644592045439,44.65414182,107.6,107.53,46.12481171]
[1644592045640,48.12580425,107.58,107.53,46.12481171]
[1644592045840,3.48902,107.57,107.53,46.12481171]
[1644592048748,41.01421345,107.57,107.53,46.12481171]
[1644592048948,41.01421345,107.57,107.5,4.649]
[1644592049350,4.649,107.56,107.5,4.649]
[1644592049552,3.48902,107.55,107.5,4.649]
[1644592049955,3.48902,107.55,107.51,38.46394503]
[1644592050371,3.48902,107.55,107.51,38.71394503]
[1644592050757,3.48902,107.55,107.52,4.649]
[1644592050956,3.48902,107.55,107.53,37.92202449]
[1644592051557,6.52121997,107.55,107.53,37.92202449]
[1644592051958,6.52121997,107.55,107.53,34.88982452]
[1644592052561,6.52121997,107.55,107.54,3.03219997]
[1644592052760,6.52121997,107.55,107.49,4.649]
[1644592052963,6.52121997,107.55,107.48,18.6018]
[1644592053159,6.52121997,107.55,107.49,6.0]
[1644592053561,6.52121997,107.55,107.49,6.25]
[1644592053761,6.52121997,107.55,107.5,38.7078084]
[1644592053961,6.52121997,107.55,107.52,47.70568102]
[1644592054162,3.48902,107.55,107.53,3.03219997]
[1644592054362,3.48902,107.55,107.54,42.73986034]
[1644592055983,3.48902,107.55,107.53,3.03219997]
[1644592056182,3.48902,107.55,107.5,4.65]
[1644592056183,3.03219997,107.54,107.5,4.65]
[1644592056483,3.48902,107.53,107.49,0.25]
[1644592056681,3.48902,107.53,107.46,47.2042]
[1644592056682,3.48902,107.53,107.46,48.50758285]
[1644592056983,3.48902,107.53,107.47,4.651]
[1644592057184,43.36619698,107.52,107.48,45.81493548]
[1644592057381,3.48902,107.51,107.48,45.81493548]
[1644592057583,3.48902,107.51,107.49,3.03219997]
[1644592058184,3.03219997,107.5,107.49,3.03219997]
[1644592058383,6.52121997,107.5,107.49,3.03219997]
[1644592058582,6.52121997,107.5,107.46,1.30338285]
[1644592058785,6.52121997,107.5,107.45,1.30338285]
[1644592059385,3.03219997,107.5,107.45,1.30338285]
[1644592060085,3.03219997,107.5,107.45,1.55338285]
[1644592060484,3.03219997,107.5,107.46,45.88961346]
[1644592060687,3.03219997,107.5,107.46,46.13961346]
[1644592061884,6.52121997,107.5,107.46,46.13961346]
[1644592062084,6.52121997,107.5,107.46,47.44299631]
[1644592062484,6.52121997,107.5,107.46,44.63961346]
[1644592062686,6.52121997,107.5,107.48,35.36530012]
[1644592063086,3.48902,107.5,107.49,3.03219997]
[1644592063287,4.651,107.56,107.49,3.03219997]
[1644592063485,47.9909,107.57,107.49,7.93219997]
[1644592063887,93.67195847,107.57,107.5,47.09997543]
[1644592064085,4.649,107.56,107.5,47.09997543]
[1644592064287,4.649,107.56,107.5,47.34997543]
[1644592064489,50.33005847,107.57,107.5,47.34997543]
[1644592064688,45.68105847,107.57,107.5,47.34997543]
[1644592065490,67.0346,107.6,107.5,49.73364334]
[1644592065691,51.92192,107.6,107.51,10.649]
[1644592065892,3.48902,107.6,107.51,6.0]
[1644592066091,3.48902,107.6,107.52,11.16]
[1644592066291,3.48902,107.6,107.53,6.0]
[1644592066493,38.49904999,107.6,107.53,48.64518879]
[1644592066790,38.49904999,107.6,107.53,48.89518879]
[1644592066991,38.49904999,107.6,107.53,42.64518879]
[1644592067391,35.01002999,107.6,107.53,42.64518879]
[1644592067892,39.57879144,107.58,107.53,42.64518879]
[1644592068291,4.648,107.57,107.53,42.64518879]
[1644592068495,39.57879144,107.58,107.53,42.64518879]
[1644592068693,4.648,107.58,107.53,42.64518879]
[1644592069192,4.648,107.61,107.53,42.64518879]
[1644592069393,8.13702,107.61,107.53,42.64518879]
[1644592069595,6.0,107.6,107.53,42.64518879]
[1644592069797,38.17351665,107.6,107.53,42.64518879]
[1644592070794,52.12511665,107.6,107.51,4.648]
[1644592070996,10.648,107.59,107.51,4.648]
[1644592071593,14.13702,107.59,107.49,4.649]
[1644592071793,43.19860336,107.58,107.49,46.59610107]
[1644592072194,42.60913256,107.56,107.51,36.03716777]
[1644592072594,42.60913256,107.56,107.51,36.28716777]
[1644592073193,24.6014,107.59,107.51,36.28716777]
[1644592073393,24.6014,107.59,107.52,4.649]
[1644592073394,19.9534,107.59,107.52,4.649]
[1644592073595,53.8817,107.61,107.52,4.649]
[1644592073793,53.8817,107.61,107.52,4.899]
[1644592073996,53.8817,107.61,107.53,2.38366791]
[1644592074194,48.01483527,107.6,107.53,42.86711881]
[1644592074395,48.01483527,107.6,107.54,4.648]
[1644592074598,52.66283527,107.6,107.55,47.51101235]
[1644592074798,48.01483527,107.6,107.55,47.76101235]
[1644592075896,48.01483527,107.6,107.54,4.648]
[1644592076101,48.01483527,107.6,107.52,4.648]
[1644592076297,4.648,107.59,107.51,11.16]
[1644592076498,4.648,107.59,107.51,0.25]
[1644592076896,47.74942008,107.58,107.51,42.83013093]
[1644592077096,61.70352008,107.58,107.51,42.83013093]
[1644592077696,61.70352008,107.58,107.5,4.649]
[1644592077900,4.649,107.57,107.49,1.30338285]
[1644592078196,10.649,107.57,107.46,1.30338285]
[1644592078400,10.649,107.57,107.46,5.95338285]
[1644592078401,58.66246791,107.57,107.46,5.95338285]
[1644592078597,13.9599,107.55,107.46,5.95338285]
[1644592078800,45.0613961,107.54,107.45,1.30338285]
[1644592079798,13.9601,107.53,107.45,1.55338285]
[1644592079998,39.34914311,107.52,107.44,1.30338285]
[1644592080196,34.69814311,107.52,107.44,1.55338285]
[1644592080397,48.68095186,107.5,107.44,1.55338285]
[1644592080598,48.68095186,107.5,107.45,41.62524314]
[1644592080801,22.7489,107.54,107.45,43.17862599]
[1644592080996,22.7489,107.54,107.46,4.651]
[1644592081196,4.651,107.53,107.46,0.25]
[1644592081696,36.48550068,107.52,107.45,43.17862599]
[1644592082897,36.48550068,107.52,107.46,4.651]
[1644592083199,36.48550068,107.52,107.47,40.40559665]
[1644592083397,4.651,107.55,107.47,40.40559665]
[1644592083598,33.3092,107.57,107.48,10.65]
[1644592083798,4.65,107.58,107.49,11.16]
[1644592084000,4.649,107.59,107.5,4.649]
[1644592084198,4.649,107.59,107.5,6.25]
[1644592084398,49.9634998,107.58,107.49,38.62645629]
[1644592084600,4.649,107.57,107.49,0.25]
[1644592085601,57.33459525,107.56,107.47,1.30338285]
[1644592085801,57.33459525,107.56,107.46,50.42025404]
[1644592086003,4.65,107.55,107.46,4.649]
[1644592086406,45.76146316,107.56,107.46,4.649]
[1644592086906,13.9622,107.53,107.46,4.649]
[1644592087104,35.64028338,107.52,107.46,4.649]
[1644592087304,10.651,107.51,107.46,4.649]
[1644592088105,34.40040823,107.5,107.43,52.78232222]
[1644592088307,39.05240823,107.5,107.43,48.13132222]
[1644592088506,39.05240823,107.5,107.41,5.95538285]
[1644592088707,39.05240823,107.5,107.41,1.55338285]
[1644592089608,39.05240823,107.5,107.41,43.18575655]
[1644592089809,13.9659,107.49,107.41,43.18575655]
[1644592090113,34.39173874,107.48,107.41,43.18575655]
[1644592091210,48.35863874,107.48,107.41,43.18575655]
[1644592091813,48.35863874,107.48,107.41,1.55338285]
[1644592092012,4.652,107.47,107.4,5.97938285]
[1644592092212,10.652,107.47,107.4,4.652]
[1644592092411,13.9722,107.45,107.4,4.652]
[1644592092612,4.654,107.44,107.39,0.024]
[1644592092812,44.88194843,107.43,107.37,0.024]
[1644592093011,44.88194843,107.43,107.36,43.31514523]
[1644592093212,52.3,107.47,107.37,4.655]
[1644592093411,52.3,107.47,107.38,1.30338285]
[1644592093612,6.0,107.47,107.39,4.678]
[1644592093811,51.1616,107.5,107.39,0.274]
[1644592094011,6.0,107.46,107.4,0.024]
[1644592094314,35.93104443,107.45,107.39,40.6412836]
[1644592094512,35.93104443,107.45,107.39,45.2952836]
[1644592094716,35.93104443,107.45,107.39,45.5452836]
[1644592094913,6.0,107.46,107.4,2.38366791]
[1644592095114,46.5076,107.5,107.4,8.38366791]
[1644592095315,4.652,107.49,107.4,8.65766791]
[1644592095614,46.5528,107.52,107.41,2.38366791]
[1644592095813,46.5528,107.52,107.41,2.63366791]
[1644592096041,42.7122706,107.51,107.42,40.4860014]
[1644592096241,47.3642706,107.51,107.42,40.7360014]
[1644592096543,47.3642706,107.51,107.42,40.4860014]
[1644592096743,13.9648,107.5,107.42,40.7360014]
[1644592096944,13.9648,107.5,107.42,45.1380014]
[1644592096945,35.13377608,107.49,107.42,45.1380014]
[1644592097144,39.78577608,107.49,107.42,40.4860014]
[1644592098343,49.09987608,107.49,107.42,40.4860014]
[1644592098545,35.13377608,107.49,107.42,40.4860014]
[1644592098743,35.13377608,107.49,107.42,40.7360014]
[1644592099551,35.13377608,107.49,107.43,10.652]
[1644592099746,13.9646,107.51,107.44,46.66359342]
[1644592099945,13.9646,107.51,107.44,49.04726133]
[1644592100149,13.9646,107.51,107.44,49.29726133]
[1644592100347,13.9646,107.51,107.44,2.38366791]
[1644592100546,10.652,107.5,107.43,4.652]
[1644592100750,13.9668,107.49,107.43,4.652]
[1644592100953,4.652,107.48,107.43,4.652]
[1644592101450,44.87614592,107.47,107.4,48.25451592]
[1644592101850,4.652,107.46,107.4,48.25451592]
[1644592102057,34.63462331,107.45,107.4,48.23051592]
[1644592103052,34.63462331,107.45,107.4,52.88451592]
[1644592103458,34.63462331,107.45,107.4,4.654]
[1644592103654,34.63462331,107.45,107.39,0.024]
[1644592103853,34.63462331,107.45,107.38,1.55338285]
[1644592104053,34.63462331,107.45,107.38,0.25]
[1644592104854,48.60592331,107.45,107.38,0.25]
[1644592105054,48.60592331,107.45,107.37,45.41772342]
[1644592105754,48.60592331,107.45,107.38,1.30338285]
[1644592106154,48.60592331,107.45,107.38,1.55338285]
[1644592106355,48.60592331,107.45,107.39,35.79565316]
[1644592106556,34.63462331,107.45,107.39,35.79565316]
[1644592108157,28.8976,107.47,107.39,38.17932107]
[1644592108357,22.8465,107.49,107.4,4.654]
[1644592108558,22.8465,107.49,107.41,17.16]
[1644592108759,4.652,107.48,107.42,4.652]
[1644592108959,4.652,107.48,107.42,4.676]
[1644592109158,61.91146405,107.47,107.42,4.652]
[1644592109359,61.91146405,107.47,107.41,42.98758062]
[1644592109561,61.91146405,107.47,107.39,12.73738285]
[1644592110359,13.9684,107.47,107.39,12.73738285]
[1644592110559,5.96663284,107.53,107.4,6.0]
[1644592110760,4.652,107.52,107.41,11.16]
[1644592110959,4.652,107.52,107.42,0.024]
[1644592111158,7.03566791,107.52,107.42,0.024]
[1644592111359,89.10549247,107.51,107.41,0.024]
[1644592111558,18.6171,107.5,107.39,40.06225437]
[1644592111758,44.67013921,107.49,107.4,0.024]
[1644592111958,4.652,107.48,107.39,0.024]
[1644592112362,6.0,107.47,107.39,0.024]
[1644592112558,18.6254,107.46,107.39,0.024]
[1644592112760,51.32075049,107.45,107.37,0.024]
[1644592112959,4.655,107.44,107.37,0.024]
[1644592113163,4.655,107.44,107.36,1.30338285]
[1644592113360,4.655,107.44,107.35,1.30338285]
[1644592113560,4.655,107.44,107.36,0.024]
[1644592113960,39.96639949,107.43,107.36,0.024]
[1644592114162,4.655,107.42,107.36,0.024]
[1644592114360,59.5235962,107.41,107.35,1.30338285]
[1644592114560,59.5235962,107.41,107.36,42.89508562]
[1644592114761,45.5466962,107.41,107.36,45.52875353]
[1644592114965,45.5466962,107.41,107.37,4.656]
[1644592115261,45.5466962,107.41,107.38,45.99738203]
[1644592115560,45.5466962,107.41,107.39,3.03219997]
[1644592116362,13.9734,107.43,107.39,3.03219997]
[1644592116564,70.3588,107.46,107.39,3.03219997]
[1644592116764,70.3588,107.46,107.39,3.05619997]
[1644592117269,6.0,107.45,107.39,3.05619997]
[1644592117466,46.59101513,107.44,107.39,3.03219997]
[1644592117665,51.24501513,107.44,107.39,3.03219997]
[1644592117867,65.21701513,107.44,107.39,3.03219997]
[1644592118064,65.21701513,107.44,107.38,1.32738285]
[1644592118269,65.21701513,107.44,107.37,4.656]
[1644592118270,67.60068304,107.44,107.37,5.95938285]
[1644592118465,67.60068304,107.44,107.37,4.656]
[1644592118669,65.21701513,107.44,107.37,4.68]
[1644592118865,65.21701513,107.44,107.37,50.78043581]
[1644592119066,111.93701513,107.44,107.37,50.78043581]
[1644592119265,65.21701513,107.44,107.37,50.78043581]
[1644592119467,18.625,107.46,107.37,54.46748657]
[1644592119666,4.655,107.47,107.39,1.30338285]
[1644592119867,4.655,107.47,107.39,5.95538285]
[1644592120069,4.655,107.47,107.39,6.22938285]
[1644592120275,4.655,107.47,107.39,1.32738285]
[1644592120469,6.0,107.46,107.39,1.32738285]
[1644592120669,6.0,107.46,107.37,0.024]
[1644592120670,13.9761,107.44,107.37,0.024]
[1644592120871,13.9761,107.44,107.36,1.30338285]
[1644592121270,45.87334191,107.43,107.37,40.12171601]
[1644592121471,45.87334191,107.43,107.37,40.14571601]
[1644592121671,37.00837514,107.41,107.37,41.42509886]
[1644592122894,13.9732,107.43,107.37,41.42509886]
[1644592123792,40.78386376,107.42,107.37,41.42509886]
[1644592124593,13.9732,107.43,107.37,41.42509886]
[1644592124794,13.9703,107.46,107.38,5.95838285]
[1644592125196,13.9703,107.46,107.38,8.59205076]
[1644592125592,43.24839509,107.45,107.38,8.34205076]
[1644592125793,67.87389509,107.45,107.38,5.95838285]
[1644592125993,63.21989509,107.45,107.39,46.47746327]
[1644592126693,63.21989509,107.45,107.38,5.95838285]
[1644592126895,63.21989509,107.45,107.38,6.20838285]
[1644592127397,49.24839509,107.45,107.38,6.20838285]
[1644592127595,49.24839509,107.45,107.39,46.24935455]
[1644592127800,4.654,107.49,107.4,5.95738285]
[1644592127995,29.5891,107.5,107.4,8.34105076]
[1644592128196,6.0,107.49,107.41,9.68705076]
[1644592128498,4.652,107.51,107.42,7.03566791]
[1644592128695,4.652,107.51,107.43,47.06646673]
[1644592128696,38.53917462,107.5,107.43,47.06646673]
[1644592128896,47.59730627,107.48,107.43,47.06646673]
[1644592129298,4.652,107.51,107.43,47.06646673]
[1644592129497,6.0,107.5,107.43,51.96846673]
[1644592129697,6.0,107.51,107.43,51.96846673]
[1644592129899,24.6147,107.51,107.43,47.31646673]
[1644592130097,18.6147,107.51,107.43,47.31646673]
[1644592130302,38.58852934,107.5,107.43,47.31646673]
[1644592130497,38.58852934,107.5,107.43,51.00351749]
[1644592131397,38.58852934,107.5,107.43,50.75351749]
[1644592131598,6.0,107.49,107.43,1.30338285]
[1644592131799,10.652,107.49,107.41,5.95538285]
[1644592132004,10.652,107.49,107.41,4.652]
[1644592132499,38.89605397,107.48,107.41,40.06034285]
[1644592132700,52.86305397,107.48,107.41,40.06034285]
[1644592133103,52.86305397,107.48,107.41,41.6137257]
[1644592133399,52.86305397,107.48,107.41,40.31034285]
[1644592133599,52.86305397,107.48,107.41,40.06034285]
[1644592134401,40.88382529,107.46,107.41,35.40834285]
[1644592134601,40.88382529,107.46,107.41,37.79201076]
[1644592135804,54.85282529,107.46,107.41,37.79201076]
[1644592136001,54.85282529,107.46,107.41,35.40834285]
[1644592136402,40.88382529,107.46,107.41,35.40834285]
[1644592137605,4.652,107.47,107.41,37.79201076]
[1644592137804,4.652,107.5,107.41,43.99739361]
[1644592138108,24.1069,107.52,107.42,7.30338285]
[1644592138404,43.65675614,107.51,107.44,40.70501933]
[1644592138806,43.65675614,107.51,107.44,40.95501933]
[1644592139006,43.65675614,107.51,107.44,43.33868724]
[1644592139405,57.61955614,107.51,107.44,43.33868724]
[1644592139607,57.61955614,107.51,107.44,40.95501933]
[1644592140410,57.61955614,107.51,107.44,43.33868724]
[1644592141512,23.4812,107.53,107.44,43.33868724]
[1644592141709,69.7436,107.55,107.45,17.16]
[1644592142110,6.0,107.54,107.46,2.38366791]
[1644592142309,20.56979169,107.54,107.47,6.0]
[1644592142510,42.32591813,107.53,107.47,53.03194064]
[1644592142710,42.32591813,107.53,107.47,49.66560855]
[1644592142909,42.32591813,107.53,107.47,49.41560855]
[1644592143111,42.32591813,107.53,107.47,49.66560855]
[1644592143709,42.32591813,107.53,107.47,45.01560855]
[1644592143910,42.32591813,107.53,107.45,29.7702]
[1644592144110,46.97691813,107.53,107.46,6.0]
[1644592144311,46.97691813,107.53,107.44,34.4944]
[1644592144511,49.36058604,107.53,107.44,34.4944]
[1644592144710,14.55500412,107.52,107.44,34.7444]
[1644592144913,34.65136681,107.51,107.45,37.64342212]
[1644592145311,34.65136681,107.51,107.45,37.89342212]
[1644592146210,34.65136681,107.51,107.45,42.54542212]
[1644592146811,34.65136681,107.51,107.45,4.652]
[1644592146812,39.30336681,107.51,107.45,4.652]
[1644592147011,53.26566681,107.51,107.45,4.652]
[1644592147411,46.72,107.5,107.41,1.30338285]
[1644592147614,4.652,107.49,107.39,1.32738285]
[1644592147813,35.98507398,107.48,107.41,0.024]
[1644592148012,4.652,107.47,107.39,0.024]
[1644592148216,13.9705,107.45,107.39,0.024]
[1644592148436,13.9705,107.45,107.37,113.10338285]
[1644592148437,4.654,107.44,107.37,113.12738285]
[1644592148613,4.654,107.46,107.37,113.12738285]
[1644592148813,4.654,107.46,107.37,1.32738285]
[1644592149013,47.65475343,107.45,107.37,1.57738285]
[1644592149213,47.65475343,107.45,107.37,1.32738285]
[1644592149214,13.972,107.44,107.37,1.32738285]
[1644592149414,43.81627892,107.43,107.37,0.024]
[1644592149623,43.81627892,107.43,107.36,50.48747798]
[1644592149814,39.16127892,107.43,107.36,50.48747798]
[1644592150614,39.16127892,107.43,107.36,50.73747798]
[1644592150816,53.13397892,107.43,107.36,50.73747798]
[1644592152524,53.13397892,107.43,107.36,55.39247798]
[1644592153122,53.13397892,107.43,107.36,17.14238285]
[1644592153321,75.6301,107.42,107.34,2.38366791]
[1644592153525,124.73376791,107.42,107.33,1.31883587]
[1644592153721,135.89376791,107.42,107.32,1.31883587]
[1644592153922,19.33725839,107.41,107.29,1.31883587]
[1644592154121,53.0175,107.4,107.3,38.83515012]
[1644592154321,55.76844933,107.38,107.3,41.21881803]
[1644592154521,55.76844933,107.38,107.31,4.657]
[1644592154522,41.78524933,107.38,107.31,4.657]
[1644592154722,41.78524933,107.38,107.32,42.66142236]
[1644592154923,41.78524933,107.38,107.31,4.657]
[1644592155124,4.657,107.37,107.29,53.02060378]
[1644592155622,4.657,107.37,107.29,2.38366791]
[1644592155823,41.04158837,107.36,107.28,41.33979571]
[1644592156046,45.69958837,107.36,107.28,40.02095984]
[1644592157043,6.0,107.35,107.28,40.02095984]
[1644592157343,39.57542719,107.34,107.28,40.02095984]
[1644592157541,19.9845,107.35,107.28,40.02095984]
[1644592157743,6.0,107.35,107.28,53.81462775]
[1644592157943,53.0195,107.4,107.28,53.81462775]
[1644592158143,6.0,107.39,107.28,53.81462775]
[1644592158544,42.62989122,107.38,107.28,53.81462775]
[1644592158746,48.77245546,107.36,107.28,49.15762775]